Cogmind - Beta 12 @@@ ROGUE MODE // 2023.03.12 @ 20:38:43 Player: ArabianSandBoa Result: Destroyed by S-27 Virus with Autogun Performance ------------- Evolutions (3) 1500 Regions Visited (6) 1200 Robots Destroyed (93) 465 Value Destroyed (2426) 2426 Prototype IDs (11) 220 Alien Tech Used (0) 0 Bonus (413) 413 TOTAL SCORE: 6224 Bonus ------- High Alert Combat Kills 463 Follower Combat Kills 95 Entered Garrisons 200 Friendly Fire -345 Cogmind --------- Core Integrity 0/700 Matter 290/300 Energy 84/100 System Corruption 0% Temperature Cool (0) Movement Flying (35) Location -7/Garrison Parts ------- > --- POWER (1) -------- (None) > --- PROPULSION (6) --- Cesium-ion Thruster > --- UTILITY (4) ------ Scrap Engine > --- WEAPON (2) ------- (None) > --- INVENTORY (5) ---- Power Amplifier Improved Heat Sink Insulated Plating Peak State ------------ > --- POWER ------------ Heavy Ion Engine > --- PROPULSION ------- Improved Treads Improved Treads Improved Treads > --- UTILITY ---------- Armored Scrap Engine Hardened Medium Armor Plating Hardened Medium Armor Plating > --- WEAPON ----------- Flak Gun KE Assault Construct/G > --- INVENTORY -------- Power Amplifier Remote Shield Drone Bay Guided Missile Launcher [Rating: 42] Favorites ----------- Power Heavy Ion Engine Engine Heavy Ion Engine Propulsion Light Treads Treads Light Treads Leg Aluminum Leg Wheel Wheel Hover Unit Cooled Aerolev Unit Flight Unit Flight Unit Utility Large Storage Unit Device Armored Scrap Engine Storage Large Storage Unit Protection Hardened Medium Armor Plating Weapon Improved EM Shotgun Energy Gun Improved EM Shotgun Energy Cannon Advanced Beam Cannon Ballistic Gun Constructs Launcher Rocket Launcher Build | -11 -10 -9 -9 -9 -7 -7 ------- Run | Jun Mat Mat Sto Rec Fac Gar Slots Evolved 6 | . . 2 . . 4 . Power . | . . . . . . . Propulsion 4 | . . 2 . . 2 . Utility 2 | . . . . . 2 . Weapon . | . . . . . . . Parts Attached 71 | . 6 16 38 1 7 3 Power 3 | . 1 1 1 . . . Engine 3 | . 1 1 1 . . . Core . | . . . . . . . Reactor . | . . . . . . . Propulsion 16 | . 2 5 8 . . 1 Treads 11 | . . 5 6 . . . Leg . | . . . . . . . Wheel 2 | . 2 . . . . . Hover 1 | . . . 1 . . . Flight 2 | . . . 1 . . 1 Utility 23 | . 2 3 10 1 6 1 Device 11 | . 1 2 4 1 3 . Storage 1 | . 1 . . . . . Processor . | . . . . . . . Hackware . | . . . . . . . Protection 11 | . . 1 6 . 3 1 Artifact . | . . . . . . . Weapon 29 | . 1 7 19 . 1 1 Energy Gun 17 | . . 4 13 . . . Energy Cannon 2 | . . . 2 . . . Ballistic Gun 4 | . 1 1 1 . 1 . Ballistic Cannon . | . . . . . . . Launcher 6 | . . 2 3 . . 1 Special Weapon . | . . . . . . . Impact Weapon . | . . . . . . . Slashing Weapon . | . . . . . . . Piercing Weapon . | . . . . . . . Special Melee Weapon . | . . . . . . . Unidentified Prototypes 6 | . . 1 5 . . . Corrupted Parts 1 | . . 1 . . . . System Corruption 1 | . . 1 . . . . Parts Lost 22 | . 1 7 5 . 1 8 Power 2 | . 1 . . . . 1 Propulsion 6 | . . 2 1 . 1 2 Utility 7 | . . 2 2 . . 3 Weapon 7 | . . 3 2 . . 2 Highest Loss Streak 7 | . 1 3 1 . 1 7 To Critical Strikes . | . . . . . . . Average Slot Usage (%) 80 | . 87 79 98 65 62 21 Engine 9 | . 8 10 11 11 7 2 Treads 25 | . . 23 35 33 19 4 Wheel 2 | . 26 4 . . . . Hover 3 | . . . 7 . . . Device 6 | . 4 5 1 10 12 10 Storage 8 | . 21 11 11 . . . Protection 5 | . . 1 8 . 8 1 Energy Gun 11 | . . 14 19 . 3 1 Ballistic Gun 5 | . 24 6 . 3 8 1 Naked Turns . | . . . . . . . Heaviest Build 42 | 12 34 38 42 12 32 24 Greatest Support 80 | 20 20 80 80 69 69 46 Greatest Overweight (x) 3 | . 1 1 . . . 3 Average Overweight (x) . | . . . . . . . Largest Inventory Capacity 15 | 8 15 15 15 15 5 5 Average Capacity 11 | 8 14 15 15 5 5 5 Most Carried 15 | 6 7 15 15 14 5 5 Average Carried 10 | 6 4 12 14 5 4 3 Final Capacity 15 | 8 15 15 15 5 5 5 Final Carried 15 | 6 5 15 15 5 5 3 Scrap Engine Consumption 20 | . . . . 10 9 1 Constructs Created 3 | . . . . 1 1 1 Constructs Modified 1 | . . . . 1 . . Class Distribution -------------------- 91% | Mutant 8% | Scavenger-Mutant Dominant Class ---------------- Mutant | -10/Materials Mutant | -9/Materials Mutant | -9/Storage Mutant | -9/Recycling Mutant | -7/Factory Mutant | -7/Garrison Resources | -11 -10 -9 -9 -9 -7 -7 ----------- Run | Jun Mat Mat Sto Rec Fac Gar Matter Collected 1383 | 198 221 278 587 10 52 37 Remotely . | . . . . . . . Salvage Created 3328 | . 354 921 1814 117 87 35 Parts 204 | . 26 64 102 7 3 2 Haulers Intercepted 9 | . 1 2 6 . . . Recyclers Shooed 2 | . . 1 1 . . . Parts Field Recycled . | . . . . . . . Retrieved Matter . | . . . . . . . Parts Self-Destructed . | . . . . . . . Prevented . | . . . . . . . Kills | -11 -10 -9 -9 -9 -7 -7 ------- Run | Jun Mat Mat Sto Rec Fac Gar Combat Hostiles Destroyed 63 | . 6 20 33 2 1 1 Guns 40 | . 6 14 18 1 1 . Cannons 1 | . . . . 1 . . AOE 22 | . . 6 15 . . 1 Classes Destroyed 13 | . 4 5 4 . . . Worker 5 | . 1 2 2 . . . Builder 2 | . . 1 1 . . . Hauler 9 | . 1 2 6 . . . Recycler 3 | . . 1 2 . . . Mechanic 2 | . . . 2 . . . Operator 2 | . . 1 1 . . . Watcher 5 | . 2 2 . . 1 . Swarmer 10 | . . 7 3 . . . Grunt 32 | . 6 10 15 . . 1 Brawler 2 | . . . 2 . . . Duelist 3 | . . . 3 . . . Protector 2 | . . . 2 . . . Sentry 14 | . . 3 8 2 1 . Thug 2 | . . . 2 . . . Best Kill Streak 13 | . 8 8 13 1 1 1 Combat Bots Only 9 | . 2 5 9 1 1 1 Max Kills in Single Turn 4 | . 1 2 4 1 1 1 Gunslinging 1 | . . 1 . . . . Exploded 4 | . . 2 4 . . 1 Melee . | . . . . . . . Uniques/NPCs Destroyed . | . . . . . . . Combat | -11 -10 -9 -9 -9 -7 -7 -------- Run | Jun Mat Mat Sto Rec Fac Gar Damage Taken 4745 | . 445 930 1102 150 468 1650 Core 1142 | . 158 118 112 45 70 639 Absorbed by Shields 46 | . . . . . . 46 Regen/Repaired (Parts) 55 | . . . . 15 40 . Core Remaining (%) 55 | 100 36 . . 31 . . Volleys Fired 191 | . 36 59 70 10 9 7 Largest 2 | . 2 2 2 1 2 2 Hottest 118 | . 40 90 90 60 118 118 Shots Fired 327 | . 63 105 121 10 18 10 Gun 297 | . 63 98 105 4 18 9 Cannon 14 | . . . 8 6 . . Launcher 16 | . . 7 8 . . 1 Special . | . . . . . . . Kinetic 128 | . 63 46 . 4 9 6 Thermal 26 | . . . 8 6 9 3 Explosive 16 | . . 7 8 . . 1 Electromagnetic 157 | . . 52 105 . . . Robot Hit Streak 13 | . 13 12 13 4 9 5 Robot Miss Streak 7 | . 4 7 4 1 4 2 Penetration Max . | . . . . . . . Secondary Targets 6 | . . 5 . . 1 . Max Gunslinging Chain 1 | . . 1 . . 1 . Shots Hit Robots 229 | . 41 70 88 8 14 8 Core Hits 169 | . 19 44 93 3 5 5 Critical Kills . | . . . . . . . Critical Parts Destroyed 2 | . 1 1 . . . . Critical Strikes 2 | . 1 1 . . . . Destroy 2 | . 1 1 . . . . Melee Attacks . | . . . . . . . Impact . | . . . . . . . Slashing . | . . . . . . . Piercing . | . . . . . . . Sneak Attacks . | . . . . . . . Combat Hostiles . | . . . . . . . Follow-up Attacks . | . . . . . . . Damage Inflicted 6480 | . 557 1409 3738 150 272 354 Guns 3385 | . 557 1032 1326 53 272 145 Cannons 117 | . . . 20 97 . . Explosions 2978 | . . 377 2392 . . 209 Melee . | . . . . . . . Ramming . | . . . . . . . Kinetic 1150 | . 557 361 . 53 93 86 Thermal 835 | . . 229 271 97 179 59 Explosive 2498 | . . 148 2141 . . 209 Electromagnetic 1997 | . . 671 1326 . . . Impact . | . . . . . . . Slashing . | . . . . . . . Piercing . | . . . . . . . Highest Corruption 1 | . . 1 1 1 . . Average Corruption 1 | . . 1 1 1 . . Corruption Purged . | . . . . . . . Corruption Blocked . | . . . . . . . Effects 12 | . . . 11 1 . . Message Errors 4 | . . . 4 . . . Matter Fused 1 | . . . 1 . . . Heat Flow Errors 2 | . . . 1 1 . . Parts Rejected 1 | . . . 1 . . . Data Loss (minor) 2 | . . . 2 . . . Alerts 1 | . . . 1 . . . Weapon Failures 1 | . . . 1 . . . Overload Shots . | . . . . . . . Overflow Damage 80 | . . 12 31 . . 37 Projectiles . | . . . . . . . Explosions 80 | . . 12 31 . . 37 Melee . | . . . . . . . Knockbacks . | . . . . . . . Impact . | . . . . . . . Kinetic . | . . . . . . . Secondary . | . . . . . . . Self-Inflicted Damage 254 | . . 78 122 . . 54 Shots 12 | . . 4 7 . . 1 Rammed . | . . . . . . . Targets Rammed . | . . . . . . . Kicked . | . . . . . . . Crushed . | . . . . . . . Highest Temperature 381 | . 20 218 269 253 381 280 Average Temperature 84 | . 7 72 69 79 169 149 Received Heat Transfer 1527 | . 285 288 429 45 138 342 Effects 4 | . . 2 1 . 1 . Energy Bleed 1 | . . . 1 . . . Interference 3 | . . 2 . . 1 . Siege Activations . | . . . . . . . Robots Corrupted . | . . . . . . . Combat Hostiles . | . . . . . . . Parts Fried 8 | . . 2 6 . . . Impact Corruptions . | . . . . . . . Robots Melted . | . . . . . . . Combat Hostiles . | . . . . . . . Parts Melted . | . . . . . . . Heat Transferred 837 | . . 400 437 . . . Parts Sabotaged . | . . . . . . . Parts Stolen . | . . . . . . . Parts Stripped . | . . . . . . . Power Chain Reactions 10 | . . 4 6 . . . Missiles Intercepted . | . . . . . . . Alert | -11 -10 -9 -9 -9 -7 -7 ------- Run | Jun Mat Mat Sto Rec Fac Gar Peak Influence 1001 | . 187 611 1001 445 186 214 Initial 390 | . . 78 258 390 186 29 Average 386 | . 97 339 625 413 114 92 Maximum Alert Level 3 | . . 2 3 2 . 1 Low Security (%) 34 | 100 100 19 . . 100 74 Level 1 14 | . . 37 11 24 . 25 Level 2 37 | . . 42 56 75 . . Level 3 13 | . . . 32 . . . Level 4 . | . . . . . . . Level 5 . | . . . . . . . High Security . | . . . . . . . Max Security . | . . . . . . . Squads Dispatched 12 | . 1 5 6 . . . Investigation 3 | . . 2 1 . . . Extermination . | . . . . . . . Reinforcement 5 | . 1 3 1 . . . Assault 4 | . . . 4 . . . Garrison . | . . . . . . . Intercept . | . . . . . . . Searches Triggered . | . . . . . . . Construction Impeded . | . . . . . . . Haulers Reinforced . | . . . . . . . Active Scanning Responses . | . . . . . . . Cargo Convoy Interrupts . | . . . . . . . Stealth | -11 -10 -9 -9 -9 -7 -7 --------- Run | Jun Mat Mat Sto Rec Fac Gar Distress Signals 6 | . . 4 1 . 1 . Communications Jammed . | . . . . . . . Distress Signals . | . . . . . . . Times Spotted 105 | . 10 26 51 2 2 14 Peak Tracking Total 15 | . 3 7 9 1 2 15 Tactical Retreats 2 | . . . . . . 2 Traps | -11 -10 -9 -9 -9 -7 -7 ------- Run | Jun Mat Mat Sto Rec Fac Gar Traps Triggered 3 | . . 1 . . . 2 Indirectly . | . . . . . . . Trap Hack Attempts . | . . . . . . . Triggered . | . . . . . . . Disarmed . | . . . . . . . Reprogrammed 4 | . . 4 . . . . Reused 1 | . . 1 . . . . Traps Extracted . | . . . . . . . Installed . | . . . . . . . Triggered 1 | . . 1 . . . . Machines | -11 -10 -9 -9 -9 -7 -7 ---------- Run | Jun Mat Mat Sto Rec Fac Gar Machines Disabled 6 | . . 4 2 . . . Max in Single Turn 1 | . . 1 1 . . . Machines Repaired . | . . . . . . . Machines Sabotaged . | . . . . . . . Overloaded Fab Kills . | . . . . . . . Hacking | -11 -10 -9 -9 -9 -7 -7 --------- Run | Jun Mat Mat Sto Rec Fac Gar Machines Accessed 22 | . . 3 8 5 4 2 Terminals 15 | . . 3 8 . 2 2 Fabricators . | . . . . . . . Repair Stations . | . . . . . . . Recycling Units 6 | . . . . 5 1 . Scanalyzers . | . . . . . . . Garrison Access 1 | . . . . . 1 . Total Hacks 55 | . . 12 17 15 5 6 Successful 30 | . . 8 7 11 3 1 Failed 25 | . . 4 10 4 2 5 Catastrophic 2 | . . 1 1 . . . Database Lockouts . | . . . . . . . Manual 21 | . . 3 6 11 1 . Terminals 38 | . . 12 17 . 3 6 Fabricators . | . . . . . . . Repair Stations . | . . . . . . . Recycling Units 16 | . . . . 15 1 . Scanalyzers . | . . . . . . . Garrison Access 1 | . . . . . 1 . Terminal Hacks 15 | . . 7 6 . 1 1 Robot Analysis 1 | . . 1 . . . . Prototype ID Bank 1 | . . 1 . . . . Open Door 6 | . . . 6 . . . Open DSF 1 | . . . . . 1 . Branch Access Points 1 | . . 1 . . . . Emergency Access Points 2 | . . 1 . . . 1 Reprogram Traps 1 | . . 1 . . . . Hauler Manifests 2 | . . 2 . . . . Fabricator Hacks . | . . . . . . . Repair Station Hacks . | . . . . . . . Recycling Unit Hacks 4 | . . . . 4 . . Report Inventory 4 | . . . . 4 . . Scanalyzer . | . . . . . . . Garrison Access Hacks 1 | . . . . . 1 . Unlock Access 1 | . . . . . 1 . Unauthorized Hacks 10 | . . 1 1 7 1 . Terminals 3 | . . 1 1 . 1 . Botnet 3 | . . 1 1 . 1 . Fabricators . | . . . . . . . Repair Stations . | . . . . . . . Recycling Units 7 | . . . . 7 . . Reject 3 | . . . . 3 . . Mask 4 | . . . . 4 . . Scanalyzers . | . . . . . . . Garrison Access . | . . . . . . . Data Cores Recovered . | . . . . . . . Used . | . . . . . . . Hacking Detections 13 | . . 3 4 3 2 1 Full Trace Events 4 | . . . 3 . . 1 Feedback Events . | . . . . . . . Feedback Blocked . | . . . . . . . Robot Schematics Acquired . | . . . . . . . Robots Built . | . . . . . . . Authchips . | . . . . . . . Time . | . . . . . . . Total Robot Build Rating . | . . . . . . . Part Schematics Acquired . | . . . . . . . Parts Built . | . . . . . . . Authchips . | . . . . . . . Time . | . . . . . . . Total Part Build Rating . | . . . . . . . Parts Repaired . | . . . . . . . Time . | . . . . . . . Parts Recycled . | . . . . . . . Recycled Matter . | . . . . . . . Retrieved Matter . | . . . . . . . Retrieved Components . | . . . . . . . Parts Scanalyzed . | . . . . . . . Part Schematics Acquired . | . . . . . . . Parts Damaged . | . . . . . . . Bothacking | -11 -10 -9 -9 -9 -7 -7 ------------ Run | Jun Mat Mat Sto Rec Fac Gar Used RIF Installer . | . . . . . . . Robots Hacked . | . . . . . . . Non-combat . | . . . . . . . Combat . | . . . . . . . Robot Hacks Applied . | . . . . . . . Relay Couplers Released . | . . . . . . . Fabnet Peak Effective % . | . . . . . . . Robots Rewired 2 | . . . . . . 2 Allies Hacked . | . . . . . . . Hacks Repelled . | . . . . . . . Allies | -11 -10 -9 -9 -9 -7 -7 -------- Run | Jun Mat Mat Sto Rec Fac Gar Total Allies 4 | . . . 2 . . 2 Largest Group 2 | . . . 2 . . 1 Highest-Rated Group 62 | . . . 62 . . 14 Highest-Rated Ally 31 | . . . 31 . . 14 Total Orders 1 | . . . . . 1 . EXPLORE 1 | . . . . . 1 . Ally Attacks 19 | . . . 17 . . 2 Total Damage 335 | . . . 335 . . . Kills 3 | . . . 3 . . . Allies Corrupted . | . . . . . . . Allies Melted . | . . . . . . . Intel | -11 -10 -9 -9 -9 -7 -7 ------- Run | Jun Mat Mat Sto Rec Fac Gar Robot Analysis Total 1 | . . 1 . . . . Derelict Logs Recovered . | . . . . . . . Drone Launches 2 | . . . . . 2 . Drone Recoveries . | . . . . . . . Exploration | -11 -10 -9 -9 -9 -7 -7 ------------- Run | Jun Mat Mat Sto Rec Fac Gar Turns Passed 3527 | 3 285 608 1427 343 712 149 Spaces Moved 1576 | 3 167 253 646 176 258 73 Core 65 | . . . . . . 65 Treads 1270 | . . 182 646 176 258 8 Legs 11 | 3 8 . . . . . Wheels 230 | . 159 71 . . . . Hover . | . . . . . . . Flight . | . . . . . . . Fastest Speed 50 | 120 80 95 160 160 160 50 Average Speed 145 | 120 94 141 160 160 160 69 Slowest Speed 200 | 120 120 160 160 160 160 200 Overloaded Moves . | . . . . . . . Propulsion Burnouts . | . . . . . . . Robots Hopped . | . . . . . . . Cave-ins Triggered . | . . . . . . . Exploration Rate (%) 36 | 2 43 26 82 68 20 13 Regions Visited 6 Branch Regions 2 Pre-discovered Areas . | . . . . . . . Known Exits Taken 2 | . . 1 . . 1 . Unknown Exits Taken 4 | 1 1 . 1 1 . . Scrap Searched . | . . . . . . . Spaces Dug . | . . . . . . . Terrain Destroyed 209 | . . 78 117 . . 14 Melee . | . . . . . . . Projectile . | . . . . . . . AOE 209 | . . 78 117 . . 14 Terrain Rammed . | . . . . . . . Walls Destroyed . | . . . . . . . Machines Disabled . | . . . . . . . Actions | -11 -10 -9 -9 -9 -7 -7 --------- Run | Jun Mat Mat Sto Rec Fac Gar Total 2484 | 2 232 392 925 235 537 161 Wait 472 | . 13 50 115 32 256 6 Move 1571 | 2 166 252 645 175 258 73 Hop . | . . . . . . . Pick Up 43 | . 5 15 20 1 2 . Fast Attach 25 | . 1 7 11 1 4 1 Attach 18 | . 2 5 9 . 1 1 Detach 4 | . . . 3 . 1 . Swap 29 | . 3 4 19 . 2 1 Drop 61 | . 6 . 33 16 4 2 Fire 191 | . 36 59 70 10 9 7 Melee . | . . . . . . . Ram . | . . . . . . . Kick . | . . . . . . . Crush . | . . . . . . . Escape Stasis 9 | . . . . . . 9 Rewire 61 | . . . . . . 61 Trap . | . . . . . . . Miscellaneous . | . . . . . . . Route ------- -11/Junkyard -10/Materials -9/Materials (discovered 3 exits: Min x2 / *Sto) -9/Storage (discovered 2 exits: [*Mat] / *Rec) -9/Recycling -7/Factory -7/Garrison History --------- Turn | Location | Event 1 | -11/Junkyard | Discovered new exit (range 0) 4 | -11/Junkyard | Entered Materials 156 | -10/Materials | Core integrity fell below 50% 281 | -10/Materials | Discovered new exit (range 6) 289 | -10/Materials | Entered another Materials area 289 | -9/Materials | Evolved 2 slots: Propulsion x2 306 | -9/Materials | Build established: Mutant 377 | -9/Materials | Identified exit to Mines 377 | -9/Materials | Identified exit to Storage 453 | -9/Materials | Lost 3 parts (2n1w) 897 | -9/Materials | Entered Storage 1034 | -9/Storage | Found Prototype Launcher 1034 | -9/Storage | Identified Gui. Missile Launcher 1250 | -9/Storage | Met a pair of Derelict thieves 1300 | -9/Storage | Build established: Scavenger-Mutant 1604 | -9/Storage | Build established: Mutant 1826 | -9/Storage | Discovered new exit (range 12) 1891 | -9/Storage | Core integrity fell below 50% 2097 | -9/Storage | First assault squad dispatched 2171 | -9/Storage | Destroyed 9 combat bots 2318 | -9/Storage | Used back door to open Recycling access 2318 | -9/Storage | Discovered new exit (range 5) 2324 | -9/Storage | Entered Recycling 2330 | -9/Recycling | Found Scrap Engine 2638 | -9/Recycling | Discovered new exit (range 16) 2667 | -9/Recycling | Entered Factory 2667 | -7/Factory | Evolved 4 slots: Propulsion x2, Utility x2 3379 | -7/Factory | Identified exit to Garrison 3379 | -7/Factory | Entered Garrison 3387 | -7/Garrison | Triggered checkpoint 3442 | -7/Garrison | Triggered checkpoint 3456 | -7/Garrison | Lost 7 parts (1p2n2u2w) 3469 | -7/Garrison | Core integrity fell below 50% 3516 | -7/Garrison | Core integrity fell below 20% 3528 | -7/Garrison | Destroyed by S-27 Virus with Autogun Last Messages --------------- 03500_ E-15 Imp destroyed. 03501_ Attempting to rewire E-15 Imp. 03505_ E-15 Imp rewired. 03505_ Imp 4a sneak attacks. 03505_ S-27 Virus VTOL Module blown off. 03505_ S-27 Virus Autogun blown off. 03505_ S-27 Virus Lgt. Nuclear Core blown off. 03505_ S-27 Virus VTOL Module blown off. 03505_ Imp 4a destroyed. 03506_ Acquired 2 matter. 03506_ Attempting to rewire E-15 Imp. 03513_ Arm. Scrap Engine destroyed. 03513_ Scrap Engine core remains intact and functional. 03514_ Attempting to rewire E-15 Imp. 03524_ E-15 Imp rewired. 03525_ S-27 Virus destroyed. 03526_ S-27 Virus VTOL Module blown off. 03526_ S-27 Virus Lgt. Nuclear Core blown off. 03526_ Imp 4b destroyed. 03527_ Acquired Cesium-ion Thruster. Map ----- +----------------------------------------------------+ | ????????????????????# #????????????????????????? | | ????????????????????# #??????+???????+##???##+## | | ????????????????????# #????????????? #???#" # | | ????????????????????# ###+##"""##### #####%" # | | ????????????????????# " | | ????????????????????# | | ????????????????????# ^ | | ???????????++???????# #######+++++#######T######## | | ????????????????????# #?????????????????###??????? | | ????????????????????# #??????????????????????????? | | ????????????????????# #??????????????????????????? | | ????????????????????# #??????????????????????????? | | ????????????????????# #?????????????+????????????? | | ????????????????????# #??????????????????????????? | | ????????????????????# #??????????????????????????? | | ????????????????????# #???????+???+??????????????? | | ????????????????????# #??????????????????????????? | | ????????????????????# #??###?????????????????????? | | ????????????????????# #### ##+## #?+?????+???????? | | ????????????????????# = ????????? | | ????????????????????# ####g##### #???????????????? | | ????????????????????# ##?#s#?????????????????????? | | ????????????????????# "###s#?????????????????????? | | ????????????????????# T##=s#?????????????????????? | | ????????????????????#""##sl#?????????????????????? | | ????????????????????#####@%#?????????????????????? | | ????????????????????????####?????????????????????? | | ?????????????????????????????????????????????????? | | ?????????????????????????????????????????????????? | | ?????????????????????????????????????????????????? | | ?????????????????????????????????????????????????? | | ?????????????????????????????????????????????????? | | ?????????????????????????????????????????????????? | | ?????????????????????????????????????????????????? | | ?????????????????????????????????????????????????? | | ?????????????????????????????????????????????????? | | ?????????????????????????????????????????????????? | | ?????????????????????????????????????????????????? | | ?????????????????????????????????????????????????? | | ?????????????????????????????????????????????????? | | | | | | | | | | | | | | | | | | | | | +----------------------------------------------------+ Best States ------------- Heat Dissipation 48 Energy Generation 15 Energy Capacity 280 Matter Stores 300 Matter Capacity 300 Sight Range 16 Robot Scan Range 14 Terrain Scan Density 10 Jamming Range 12 Power Amplification 20 Armor Coverage 450 Evasion (%) 50 Recoil Reduction 4 Item Schematics ----------------- None Robot Schematics ------------------ None Fabricated ------------ Nothing Alien Tech Used ----------------- None Achievements -------------- None Challenges ------------ None Game ------ Seed CompactNetworkBoosters Manual? 0 Play Time 00:35:14 Cumulative 453.7 hours Start 2023.03.12 @ 19:59:19 End 2023.03.12 @ 20:38:43 Sessions 1 Manual Loads 0 Difficulty Rogue Special Mode None Game No. 509 Rogue 509 Adventurer 0 Explorer 0 Win Type - Total 1 Types 1/0/0/0/0/0/0/0/0 Lore% 60 Gallery% 79 Achievement% 65 Wizard Run 0 Options --------- ASCII 0 Keyboard 0 Movement Mouse Keybinds 0 Fullscreen 2 Font 24/Smallcaps Map View 76x50 Tactical HUD 1 Map Filters NONE Filters NONE Steam 1 RUN: 37b68bdf-4e1c-4cc0-aca8-6d418cefae55